Cogmind - Beta 17.1 @@@ ROGUE MODE // 2026.09.18 @ 16:16:14 Player: 7H-NLC Result: Self-destructed Performance ------------- Evolutions (4) 2000 Regions Visited (4) 800 Robots Destroyed (18) 90 Value Destroyed (539) 539 Prototype IDs (24) 480 Alien Tech Used (0) 0 Bonus (300) 300 TOTAL SCORE: 4209 Bonus ------- Registered with UFD 300 Cogmind --------- Core Integrity 818/850 Matter 148/300 Energy 160/160 System Corruption 0% Temperature Cool (0) Movement Walking (190) Ox1 Location -6/Factory Parts ------- > --- POWER (1) -------- Light Fission Core > --- PROPULSION (4) --- Armored Leg Armored Leg Compact Wheel > --- UTILITY (8) ------ Large Storage Unit Improved Trap Scanner Advanced Sensor Array Seismic Detector Improved Utility Shielding Hardened Light Armor Plating Hardened Light Armor Plating High-powered Tractor Beam > --- WEAPON (2) ------- Gauss Rifle > --- INVENTORY (15) --- Light Treads Spiked Treads Large Matter Pod (60) Spectral Analyzer Seismic Detector Hardened Light Armor Plating Hardened Light Armor Plating Hardened Light Armor Plating Hacking Suite Rainbow Chip Heavy Ion Cannon Compact Ion Cannon Flak Gun Grenade Launcher Grenade Launcher Peak State ------------ > --- POWER ------------ Angular Momentum Engine > --- PROPULSION ------- Armored Leg Armored Leg Compact Wheel Compact Wheel > --- UTILITY ---------- Large Storage Unit Improved Trap Scanner Advanced Sensor Array Seismic Detector Kinecellerator Improved Utility Shielding Improved Light Armor Plating High-powered Tractor Beam > --- WEAPON ----------- Compact Ion Cannon Gauss Rifle > --- INVENTORY -------- Light Treads Spiked Treads Large Matter Pod Spectral Analyzer Seismic Detector Hardened Light Armor Plating Hardened Light Armor Plating Hardened Light Armor Plating Hacking Suite Rainbow Chip Heavy Ion Cannon Gauss Rifle Flak Gun Grenade Launcher Grenade Launcher [Rating: 57] Favorites ----------- Power Ion Engine Engine Ion Engine Power Core Light Fission Core Propulsion Light Treads Treads Light Treads Leg Armored Leg Wheel Compact Wheel Utility Large Storage Unit Device Seismic Detector Storage Large Storage Unit Protection Light Armor Plating Weapon Assault Rifle Energy Cannon Compact Ion Cannon Ballistic Gun Assault Rifle Launcher Grenade Launcher Special Weapon Mining Laser Build | -11 -10 -10 -9 -6 ------- Run | Yrd Mat Sub Scr Fac Slots Evolved 8 | . . . . 8 Power . | . . . . . Propulsion 2 | . . . . 2 Utility 6 | . . . . 6 Weapon . | . . . . . Parts Attached 41 | 7 8 7 5 14 Power 5 | 1 1 . 2 1 Engine 4 | 1 1 . 2 . Core 1 | . . . . 1 Reactor . | . . . . . Propulsion 10 | 2 2 2 . 4 Treads 6 | . 2 2 . 2 Leg 2 | . . . . 2 Wheel 2 | 2 . . . . Hover . | . . . . . Flight . | . . . . . Utility 16 | 2 3 3 . 8 Device 7 | 1 . 2 . 4 Storage 3 | 1 2 . . . Processor . | . . . . . Hackware . | . . . . . Protection 6 | . 1 1 . 4 Artifact . | . . . . . Weapon 10 | 2 2 2 3 1 Energy Gun . | . . . . . Energy Cannon 1 | . . . . 1 Ballistic Gun 6 | 2 . 1 3 . Ballistic Cannon . | . . . . . Launcher 2 | . 1 1 . . Special Weapon 1 | . 1 . . . Impact Weapon . | . . . . . Slashing Weapon . | . . . . . Piercing Weapon . | . . . . . Special Melee Weapon . | . . . . . Unidentified Prototypes 1 | . . . . 1 Parts Lost 6 | . . 4 . 2 Power 1 | . . 1 . . Propulsion 2 | . . 1 . 1 Utility . | . . . . . Weapon 3 | . . 2 . 1 Highest Loss Streak 2 | . . 2 . 2 To Critical Strikes . | . . . . . Average Backups 13 | 4 8 13 14 15 Power . | . . . . . Propulsion 3 | 1 2 3 3 2 Utility 7 | . 2 7 8 8 Weapon 3 | . 2 3 3 4 Tool/Special . | . . . . . Unused Backups 13 | . . . 3 10 Power . | . . . . . Propulsion 1 | . . . 1 . Utility 10 | . . . 1 9 Weapon 2 | . . . 1 1 Tool/Special . | . . . . . Average Slot Usage (%) 93 | . 100 96 90 85 Engine 8 | . 14 10 5 4 Treads 20 | . 8 27 21 3 Wheel 6 | . 19 . 6 12 Device 13 | . 9 11 14 21 Storage 13 | . 14 14 14 6 Protection 2 | . 4 2 . 12 Ballistic Gun 23 | . 27 19 28 9 Special Weapon 2 | . . 7 . . Peak Build Rating 57 | 7 8 13 21 57 Average Rating 13 | 6 7 10 12 44 On Entrance 9 | . 7 8 10 21 Avg Prop Armor Cover (%) 11 | . . . . 11 Naked Turns . | . . . . . Heaviest Build 59 | 13 32 33 42 59 Greatest Support 40 | 32 40 40 40 32 Greatest Overweight (x) 1 | . . 1 1 1 Average Overweight (x) . | . . . . 1 Largest Inventory Capacity 15 | 8 15 15 15 15 Average Capacity 14 | 7 9 15 15 15 Most Carried 15 | 6 12 15 15 15 Average Carried 13 | 4 8 13 14 14 Final Capacity 15 | 8 15 15 15 15 Final Carried 15 | 6 12 15 15 15 Class Distribution -------------------- 100% | Mutant Dominant Class ---------------- Mutant | -10/Materials Mutant | -10/Subcaves Mutant | -9/Scraptown Mutant | -6/Factory Resources | -11 -10 -10 -9 -6 ----------- Run | Yrd Mat Sub Scr Fac Matter Collected 1192 | 435 205 238 174 140 Remotely . | . . . . . Salvage Created 680 | 153 205 182 . 140 Parts 40 | 13 12 9 . 6 Haulers Intercepted 1 | . 1 . . . Recyclers Shooed 1 | 1 . . . . Parts Field Recycled . | . . . . . Retrieved Matter . | . . . . . Parts Self-Destructed 7 | . . 7 . . Prevented . | . . . . . Parts Restored . | . . . . . Kills | -11 -10 -10 -9 -6 ------- Run | Yrd Mat Sub Scr Fac Combat Hostiles Destroyed 12 | . 4 6 . 2 Guns 9 | . 2 5 . 2 AOE 3 | . 2 1 . . Classes Destroyed 8 | 3 2 2 . 1 Worker 2 | 2 . . . . Tunneler 2 | 2 . . . . Hauler 1 | . 1 . . . Recycler 1 | 1 . . . . Grunt 6 | . 4 2 . . Sentry 2 | . . 1 . 1 Hunter 1 | . . . . 1 Subdweller 3 | . . 3 . . Best Kill Streak 3 | 2 2 3 . 1 Combat Bots Only 3 | . 2 3 . 1 Max Kills in Single Turn 2 | 1 2 1 . 1 Gunslinging . | . . . . . Exploded 2 | . 2 1 . . Melee . | . . . . . Uniques/NPCs Destroyed . | . . . . . Combat | -11 -10 -10 -9 -6 -------- Run | Yrd Mat Sub Scr Fac Hostile Shots Fired 111 | . 19 34 . 58 Missed 31 | . 3 6 . 22 Hits 80 | . 16 28 . 36 Melee 2 | . . . . 2 Projectile 78 | . 16 28 . 34 AOE 6 | . . 6 . . Critical Strikes 3 | . . 2 . 1 Damage Taken 1379 | . 201 738 . 440 Core 193 | . 64 97 . 32 Absorbed by Shields . | . . . . . Redirected to Shielding 14 | . . . . 14 Core Remaining (%) 67 | 100 . . 35 . Volleys Fired 65 | 13 19 20 . 13 Largest 2 | 2 2 2 . 2 Hottest 118 | 40 100 100 . 118 Shots Fired 119 | 26 34 34 . 25 Gun 107 | 26 30 28 . 23 Cannon 2 | . . . . 2 Launcher 8 | . 3 5 . . Special 2 | . 1 1 . . Kinetic 107 | 26 30 28 . 23 Thermal 4 | . 1 1 . 2 Explosive 8 | . 3 5 . . Electromagnetic . | . . . . . Robot Hit Streak 20 | 12 9 20 . 14 Robot Miss Streak 2 | 2 2 1 . 2 Penetration Max . | . . . . . Secondary Targets . | . . . . . Shots Hit Robots 88 | 18 22 29 . 19 Core Hits 36 | 6 10 13 . 7 Critical Kills . | . . . . . Critical Parts Destroyed . | . . . . . Critical Strikes . | . . . . . Melee Attacks . | . . . . . Impact . | . . . . . Slashing . | . . . . . Piercing . | . . . . . Sneak Attacks . | . . . . . Combat Hostiles . | . . . . . Follow-up Attacks . | . . . . . Damage Inflicted 1594 | 242 412 633 . 307 Guns 1113 | 242 289 304 . 278 Cannons 29 | . . . . 29 Explosions 452 | . 123 329 . . Melee . | . . . . . Ramming . | . . . . . Kinetic 1113 | 242 289 304 . 278 Thermal 29 | . . . . 29 Explosive 452 | . 123 329 . . Electromagnetic . | . . . . . Impact . | . . . . . Slashing . | . . . . . Piercing . | . . . . . Highest Corruption . | . . . . . Average Corruption . | . . . . . Corruption Purged . | . . . . . Corruption Blocked . | . . . . . Overload Shots . | . . . . . Overflow Damage 6 | . . 6 . . Projectiles . | . . . . . Explosions 6 | . . 6 . . Melee . | . . . . . Knockbacks . | . . . . . Impact . | . . . . . Kinetic . | . . . . . Secondary . | . . . . . Self-Inflicted Damage . | . . . . . Shots . | . . . . . Rammed . | . . . . . Targets Rammed . | . . . . . Kicked . | . . . . . Crushed . | . . . . . Highest Temperature 254 | . 20 254 . 112 Average Temperature 54 | . 4 135 . 57 Received Heat Transfer 595 | . 108 445 . 42 Siege Activations . | . . . . . Martial Activations . | . . . . . Shielding Activations . | . . . . . Robots Disrupted . | . . . . . Combat Hostiles . | . . . . . Robots Corrupted . | . . . . . Combat Hostiles . | . . . . . Parts Fried . | . . . . . Impact Corruptions . | . . . . . Robots Melted . | . . . . . Combat Hostiles . | . . . . . Parts Melted . | . . . . . Heat Transferred 37 | . . . . 37 Parts Sabotaged . | . . . . . Parts Stolen . | . . . . . Parts Stripped . | . . . . . Power Chain Reactions . | . . . . . Alert | -11 -10 -10 -9 -6 ------- Run | Yrd Mat Sub Scr Fac Maximum Alert Level . | . . . . . Low Security (%) 100 | 100 100 . . 100 Level 1 . | . . . . . Level 2 . | . . . . . Level 3 . | . . . . . Level 4 . | . . . . . Level 5 . | . . . . . High Security . | . . . . . Max Security . | . . . . . Peak Influence 64 | 10 64 . . 30 Initial . | . . . . . Average 10 | 2 16 . . 3 Influence Increases 313 | 25 167 60 . 61 Destroy 0b10 Robot/C 180 | . 80 60 . 40 Destroy 0b10 Robot/NC 30 | 25 5 . . . Destroy Leader 42 | . 22 . . 20 Destroy Structure 16 | . 15 . . 1 Partial Spotted 15 | . 15 . . . Lose Combat Pursuer 30 | . 30 . . . Influence Decreases 313 | 25 167 60 . 61 Time Decay 313 | 25 167 60 . 61 Squads Dispatched 3 | . 1 . . 2 Investigation 1 | . . . . 1 Extermination 1 | . . . . 1 Reinforcement 1 | . 1 . . . Assault . | . . . . . Garrison . | . . . . . Intercept . | . . . . . Searches Triggered . | . . . . . Construction Impeded . | . . . . . Haulers Reinforced . | . . . . . Active Scanning Responses . | . . . . . Cargo Convoy Interrupts . | . . . . . Stealth | -11 -10 -10 -9 -6 --------- Run | Yrd Mat Sub Scr Fac Distress Signals 1 | . . . . 1 Communications Jammed . | . . . . . Distress Signals . | . . . . . Times Spotted 22 | . 9 7 . 6 Peak Tracking Total 3 | . 3 3 . 3 Tactical Retreats 1 | . 1 . . . Traps | -11 -10 -10 -9 -6 ------- Run | Yrd Mat Sub Scr Fac Traps Triggered 2 | . . 1 . 1 Indirectly . | . . . . . Trap Hack Attempts . | . . . . . Triggered . | . . . . . Disarmed . | . . . . . Reprogrammed . | . . . . . Reused . | . . . . . Traps Extracted . | . . . . . Installed . | . . . . . Triggered . | . . . . . Machines | -11 -10 -10 -9 -6 ---------- Run | Yrd Mat Sub Scr Fac Machines Disabled 1 | . . 1 . . Max in Single Turn 1 | . . 1 . . Machines Repaired . | . . . . . Machines Dismantled . | . . . . . Machines Sabotaged . | . . . . . Overloaded Fab Kills . | . . . . . Hacking | -11 -10 -10 -9 -6 --------- Run | Yrd Mat Sub Scr Fac Machines Accessed 7 | . 2 1 1 3 Terminals 4 | . 2 . . 2 Fabricators . | . . . . . Repair Stations . | . . . . . Recycling Units . | . . . . . Scanalyzers . | . . . . . Garrison Access 1 | . . . . 1 Total Hacks 15 | . 4 1 5 5 Successful 10 | . 2 1 5 2 Failed 5 | . 2 . . 3 Catastrophic 4 | . 1 . . 3 Database Lockouts . | . . . . . Manual 1 | . 1 . . . Terminals 7 | . 4 . . 3 Fabricators . | . . . . . Repair Stations . | . . . . . Recycling Units . | . . . . . Scanalyzers . | . . . . . Garrison Access 2 | . . . . 2 Terminal Hacks 10 | . 2 1 5 2 Robot Analysis 5 | . . . 5 . Prototype ID Bank 1 | . . . . 1 Locate Traps 1 | . 1 . . . Recall Reinforcements 1 | . 1 . . . Hauler Manifests 1 | . . . . 1 Proto ID Catalog 1 | . . 1 . . Fabricator Hacks . | . . . . . Repair Station Hacks . | . . . . . Recycling Unit Hacks . | . . . . . Scanalyzer . | . . . . . Garrison Access Hacks . | . . . . . Unauthorized Hacks . | . . . . . Terminals . | . . . . . Fabricators . | . . . . . Repair Stations . | . . . . . Recycling Units . | . . . . . Scanalyzers . | . . . . . Garrison Access . | . . . . . Data Cores Recovered . | . . . . . Used . | . . . . . Hacking Detections 4 | . 2 . . 2 Full Trace Events 1 | . . . . 1 Feedback Events . | . . . . . Feedback Blocked . | . . . . . Robot Schematics Acquired . | . . . . . Robots Built . | . . . . . Authchips . | . . . . . Time . | . . . . . Total Robot Build Rating . | . . . . . Part Schematics Acquired . | . . . . . Parts Built . | . . . . . Authchips . | . . . . . Time . | . . . . . Total Part Build Rating . | . . . . . Part Studies Acquired . | . . . . . Parts Repaired . | . . . . . Time . | . . . . . Parts Recycled . | . . . . . Recycled Matter . | . . . . . Retrieved Matter . | . . . . . Retrieved Components . | . . . . . Parts Scanalyzed . | . . . . . Part Schematics Acquired . | . . . . . Parts Damaged . | . . . . . Bothacking | -11 -10 -10 -9 -6 ------------ Run | Yrd Mat Sub Scr Fac Used RIF Installer . | . . . . . Robots Hacked . | . . . . . Non-combat . | . . . . . Combat . | . . . . . Robot Hacks Applied . | . . . . . Relay Couplers Released . | . . . . . Fabnet Peak Effective % . | . . . . . Robots Rewired . | . . . . . Allies Hacked . | . . . . . Hacks Repelled . | . . . . . Allies | -11 -10 -10 -9 -6 -------- Run | Yrd Mat Sub Scr Fac Total Allies . | . . . . . Largest Group . | . . . . . Highest-Rated Group . | . . . . . Highest-Rated Ally . | . . . . . Initial UFD Resources 23 | . . . . 23 Total Orders . | . . . . . Ally Attacks . | . . . . . Total Damage . | . . . . . Kills . | . . . . . Allies Corrupted . | . . . . . Allies Melted . | . . . . . Intel | -11 -10 -10 -9 -6 ------- Run | Yrd Mat Sub Scr Fac Active Infowar (turns) 5208 | 75 518 1634 2532 449 Sensors 373 | . . . . 373 Terrain 969 | . . 969 . . Traps 367 | . . . . 367 Seismic 4118 | 75 518 665 2532 328 Robot Analysis Total 5 | . . . 5 . Derelict Logs Recovered 1 | . . 1 . . Drone Launches . | . . . . . Drone Recoveries . | . . . . . Exploration | -11 -10 -10 -9 -6 ------------- Run | Yrd Mat Sub Scr Fac Turns Passed 5929 | 149 752 2047 2532 449 Spaces Moved 3147 | 81 406 651 1718 291 Core 2 | 2 . . . . Treads 1983 | . 113 651 1219 . Legs 57 | . . . . 57 Wheels 1105 | 79 293 . 499 234 Hover . | . . . . . Flight . | . . . . . Fastest Speed 50 | 50 100 160 100 115 Average Speed 143 | 98 116 162 146 129 Slowest Speed 240 | 100 160 240 160 190 Overloaded Moves . | . . . . . Propulsion Burnouts . | . . . . . Robots Hopped . | . . . . . Potential Cave-ins . | . . . . . Cave-ins Triggered . | . . . . . Exploration Rate (%) 34 | 5 51 26 82 6 Regions Visited 4 Branch Regions 2 Pre-discovered Areas 1 | . . 1 . . Known Exits Taken . | . . . . . Unknown Exits Taken 4 | 1 1 1 1 . Scrap Searched 10 | . . 6 4 . Spaces Dug 1 | . 1 . . . Terrain Destroyed 34 | . 18 15 . 1 Melee . | . . . . . Projectile 2 | . 1 . . 1 AOE 32 | . 17 15 . . Terrain Rammed . | . . . . . Walls Destroyed . | . . . . . Machines Disabled . | . . . . . Actions | -11 -10 -10 -9 -6 --------- Run | Yrd Mat Sub Scr Fac Total 4437 | 120 646 1596 1735 340 Wait 1122 | 14 202 906 . . Move 3143 | 80 405 650 1717 291 Hop . | . . . . . Pick Up 28 | 6 7 5 4 6 Fast Attach 16 | 7 . . 1 8 Attach 4 | . . 3 . 1 Detach 1 | . . . . 1 Swap 38 | . 10 12 6 10 Drop 20 | . 3 . 7 10 Fire 65 | 13 19 20 . 13 Melee . | . . . . . Ram . | . . . . . Kick . | . . . . . Crush . | . . . . . Escape Stasis . | . . . . . Rewire . | . . . . . Trap . | . . . . . Miscellaneous . | . . . . . Route ------- -11/Scrapyard -10/Materials (discovered 2 exits: [*Min] / *Sub) -10/Subcaves -9/Scraptown (discovered 2 exits: *Fac x2) -6/Factory History --------- Turn | Location | Event 11 | -11/Scrapyard | Discovered new exit (range 16) 150 | -11/Scrapyard | Entered Materials 301 | -10/Materials | Build established: Mutant 881 | -10/Materials | Discovered new exit (range 13) 886 | -10/Materials | Discovered new exit (range 6) 902 | -10/Materials | Entered Subcaves 903 | -10/Subcaves | Approached by a straggling Scientist 1040 | -10/Subcaves | Scientist uncovered a shortcut to Scraptown 1191 | -10/Subcaves | Disturbed a concealed Subdweller 1191 | -10/Subcaves | Ambushed by Subdweller buried in earth 1293 | -10/Subcaves | Visited 4L-MR0's lab 1327 | -10/Subcaves | Found Rainbow Chip 2456 | -10/Subcaves | Learned location of Zion (-7) 2479 | -10/Subcaves | Core integrity fell below 50% 2949 | -10/Subcaves | Entered Scraptown 3071 | -9/Scraptown | Visited UFD Registry 3071 | -9/Scraptown | Registered with UFD as "Bulletlauncher" 3111 | -9/Scraptown | Visited Scrap Suit Storage 3140 | -9/Scraptown | Visited Botcube Research 3175 | -9/Scraptown | Visited Analyses Database 3210 | -9/Scraptown | Visited Junk Repository 3268 | -9/Scraptown | Visited Derelict Rescue Squad 3322 | -9/Scraptown | Visited Supply Room 3353 | -9/Scraptown | Visited Curators Association 3665 | -9/Scraptown | Visited Infowarlord's Domain 4013 | -9/Scraptown | Visited Red Mages 4045 | -9/Scraptown | Visited Observation Area 4073 | -9/Scraptown | Visited Comm Corps 4095 | -9/Scraptown | Visited The Evicted 4121 | -9/Scraptown | Visited Cyclists 4148 | -9/Scraptown | Visited Fellowship of the Rings 4285 | -9/Scraptown | Discovered new exit (range 11) 5431 | -9/Scraptown | Found Spectral Analyzer 5471 | -9/Scraptown | Discovered new exit (range 5) 5481 | -9/Scraptown | Entered Factory 5481 | -6/Factory | Evolved 8 slots: Propulsion x2, Utility x6 5930 | -6/Factory | Self-destructed Last Messages --------------- 1x Actuator Array A-15 Conveyor 4x Cld. Deuterium Engine (2 escorts) A-15 Conveyor 3x Med. Storage Unit A-15 Conveyor 3x F-cell Engine A-15 Conveyor (Empty) >>Prototypes Downloading prototype IDs... Cld. Pulse Rifle Imp. Cesium-ion Thruster 05895_ Imp. Trap Scanner disarmed Ambush Trap. 05928_ Triggered Ambush Trap. 05928_ L-41 Fighter emerges from a hatch in the floor. 05928_ S-27 Virus emerges from a hatch in the floor. 05929_ Com. Wheel destroyed. 05929_ Gauss Rifle destroyed. Map ----- +----------------------------------------------------+ | ?????????????????????????????????????????????????? | | ?????????????????????????????????????????????????? | | ?????????????????????????????????????????????????? | | ?????????????????????????????????????????????????? | | ?????????????????????????????????????????????????? | | ?????????????????????????????????????????????????? | | ?????????????????????????????????????????????????? | | ?????????????????????????????????????????????????? | | ?????????????????????????????????????????????????? | | ?????????????????????????????????????????????????? | | ?????????????????????????????????????????????????? | | ?????????????????????????????????????????????????? | | ?????????????????????????????????????????????????? | | ##########???????????????????????????????????????? | | # #???????????????????????????????????????? | | #[ """"" #???????????????????????????????????????? | | # ""T"" #???????????????????????????????????????? | | # #???????????????????????????????????????? | | # ! #???????????????######??????????????????? | | # !! """ #???????????????# =#??????????????????? | | # ! """ #???????????????# #??????????????????? | | # """ #??????#????????# #??????????????????? | | # #????### #??????# #??????????????????? | | ##+####+##????# ###### #??????????????????? | | ?# ##? ?????# "" ##+####?????????????????? | | ?# T#? " ??? T s@l +?????????????##??? | | ## #? ?????# l #???########?? +?? | | !# ##?# #?????# #### T ##### #?? #?? | | # #??# #?????###+###### + """ #?? #?? | | + #### ### + # """ #?? #?? | | # ## # """"""""" # # """ #??# #?? | | # ## T" #??? # + #??# #?? | | + " #???"""""""" # ########### ! #??# #?? | | # ## #????? # #?????????###+####??# #?? | | ## ## ############## #???????????#?#???### ### | | ### ### ######+#######?????# #???# | | ## #?# #?# """ # ####### ##### | | ?# #?# #?# """ # + | | ?# #?# #?# """ # ############# * | | ?# ### ### # #??# ! !! # ! | | ## # # """ # #??# ! !! # # | | # # """ # #??# ! # # | | # # """ # #??#! ! # # | | # +[ # #??# " # | | #* # """ # #??# + # | | # # """ # #??# # # | | # # """ # ! #??# # # | | ######### # #??# # # | | ###########+##########+############+##### # | | + [! # # | +----------------------------------------------------+ Best States ------------- Heat Dissipation 37 Energy Generation 18 Energy Capacity 300 Matter Stores 300 Matter Capacity 300 Sight Range 16 Robot Scan Range 16 Terrain Scan Range 16 Terrain Scan Density 10 Armor Coverage 300 Utility Shielding 66 Evasion (%) 40 Recoil Reduction 2 Item Schematics ----------------- None Robot Schematics ------------------ None Fabricated ------------ Nothing Repaired ---------- Nothing Studied --------- None Alien Tech Used ----------------- None Achievements -------------- None Challenges ------------ None Game ------ Seed ForceConcussiveSpear Manual? 0 Play Time 00:27:24 Cumulative 510.2 hours Start 2026.09.18 @ 15:06:40 End 2026.09.18 @ 16:16:14 Sessions 1 Manual Loads 0 Difficulty Rogue Special Mode None Game No. 378 Rogue 378 Adventurer 0 Explorer 0 Win Type - Total 11 Types 4/0/5/2/0/0/0/0/0/0 Lore% 66 Gallery% 74 Achievement% 62 Wizard Run 0 Options --------- Layout 2 ASCII 0 Keyboard 1 Movement Vi Keybinds 0 Fullscreen 2 Font 32/Smallcaps Map View 77x44 Zoom Use 0% Tactical HUD 1 Map Filters NONE Filters NONE Steam 1 RUN: 148bd4a8-1302-4be6-aa55-2ad7f8be4949